bitfinex-derivatives/quotes_ETHF0:USTF0_20250702
["timestamp","ask_amount","ask_price","bid_price","bid_amount"]
[1751434347788,0.14422514,2437.5,2437.4,5.24308243]
[1751434348386,0.14422514,2437.5,2437.4,13.39791744]
[1751434349189,0.14422514,2437.5,2437.4,5.24308243]
[1751434349390,0.14422514,2437.5,2437.4,13.3980751]
[1751434353794,0.14422514,2437.5,2437.4,18.64965057]
[1751434355296,0.02759917,2437.5,2437.4,19.36975057]
[1751434355792,0.02759917,2437.5,2437.4,11.2147579]
[1751434358596,0.02759917,2437.5,2437.4,10.4946579]
[1751434358796,0.02759917,2437.5,2437.4,11.1716579]
[1751434363201,0.00529062,2437.5,2437.4,11.1716579]
[1751434366104,0.7038,2438.0,2437.9,0.82026]
[1751434366303,0.7038,2438.0,2437.9,3.17891243]
[1751434369205,9.017296,2438.0,2437.9,3.17891243]
[1751434375810,9.017296,2438.0,2437.9,2.47725869]
[1751434378012,9.017296,2438.0,2437.9,3.18715648]
[1751434378710,1.78298279,2438.0,2437.9,3.18715648]
[1751434379011,1.78298279,2438.0,2437.9,4.51915648]
[1751434379606,1.78298279,2438.0,2437.9,45.31915648]
[1751434380814,1.78298279,2438.0,2437.9,70.27015648]
[1751434381613,1.78298279,2438.0,2437.9,68.93815648]
[1751434382414,1.78298279,2438.0,2437.9,77.0932251]
[1751434383203,1.78298279,2438.0,2437.9,52.1422251]
[1751434384016,1.78298279,2438.0,2437.9,43.98715648]
[1751434387421,0.41524279,2438.0,2437.9,43.98715648]
[1751434390435,0.41524279,2438.0,2437.9,3.18715648]
[1751434398433,0.41524279,2438.0,2437.9,3.86125648]
[1751434398632,0.41524279,2438.0,2437.9,5.20365648]
[1751434405537,0.41524279,2438.0,2437.9,5.86375648]
[1751434406634,0.41524279,2438.0,2437.9,46.66375648]
[1751434407731,0.41524279,2438.0,2437.8,8.15506862]
[1751434407937,0.41524279,2438.0,2437.9,3.18715648]
[1751434408136,0.41524279,2438.0,2437.9,4.57395648]
[1751434408340,0.41524279,2438.0,2437.9,5.29155648]
[1751434408740,0.41524279,2438.0,2437.9,30.22555648]
[1751434412352,0.41524279,2438.0,2437.9,5.29155648]
[1751434412551,0.41524279,2438.0,2437.9,30.22255648]
[1751434413755,0.41524279,2438.0,2437.9,32.58945296]
[1751434414453,0.41524279,2438.0,2437.9,30.22255648]
[1751434414655,0.41524279,2438.0,2437.9,71.02255648]
[1751434414852,0.41524279,2438.0,2437.9,79.1776251]
[1751434415153,0.41524279,2438.0,2437.9,78.4600251]
[1751434415355,0.41524279,2438.0,2437.9,79.1588251]
[1751434415655,0.41524279,2438.0,2437.9,71.00375648]
[1751434418154,0.41524279,2438.0,2437.9,79.1588251]
[1751434418850,0.41524279,2438.0,2437.9,78.4600251]
[1751434419055,0.41524279,2438.0,2437.9,71.01045648]
[1751434419755,0.41524279,2438.0,2437.9,71.95657316]
[1751434419958,0.6714,2438.6,2438.4,0.82007]
[1751434420255,0.6714,2438.6,2438.5,1.65650658]
[1751434421046,0.6714,2438.6,2438.5,2.47655658]
[1751434421449,0.6714,2438.6,2438.5,1.65650658]
[1751434421757,0.6714,2438.6,2438.5,3.18624792]
[1751434422156,0.81994,2438.9,2438.5,2.36619792]
[1751434422455,0.6791,2438.9,2438.8,2.36619792]
[1751434422651,0.6791,2438.9,2438.8,3.18614792]
[1751434422847,0.6791,2438.9,2438.8,28.10914792]
[1751434424156,8.992596,2438.9,2438.8,28.10914792]
[1751434425357,8.992596,2438.9,2438.8,28.10614792]
[1751434427459,8.992596,2438.9,2438.8,27.28619792]
[1751434428359,9.812516,2438.9,2438.8,27.28319792]
[1751434428660,9.812516,2438.9,2438.8,24.917]
[1751434428857,9.812516,2438.9,2438.7,3.18617792]
[1751434429055,8.992596,2438.9,2438.8,24.917]
[1751434429263,8.992596,2438.9,2438.8,25.73695]
[1751434429558,8.992596,2438.9,2438.8,66.53695]
[1751434430555,8.992596,2438.9,2438.8,41.61995]
[1751434430760,8.992596,2438.9,2438.8,66.53495]
[1751434431758,8.992596,2438.9,2438.8,65.715]
[1751434432259,9.812516,2438.9,2438.8,65.715]
[1751434432459,8.992596,2438.9,2438.8,65.715]
[1751434432861,8.992596,2438.9,2438.8,66.53495]
[1751434433054,8.992596,2438.9,2438.8,67.19265]
[1751434434059,8.313496,2438.9,2438.8,67.19265]
[1751434434557,8.313496,2438.9,2438.8,68.57345]
[1751434438560,8.313496,2438.9,2438.8,43.65845]
[1751434438760,8.313496,2438.9,2438.8,68.56645]
[1751434443763,8.313496,2438.9,2438.8,71.87802494]
[1751434444464,8.313496,2438.9,2438.8,46.97002494]
[1751434444666,8.313496,2438.9,2438.8,71.87502494]
[1751434446372,8.313496,2438.9,2438.8,77.58358139]
[1751434446865,8.313496,2438.9,2438.8,77.58158139]
[1751434447362,8.313496,2438.9,2438.8,71.87302494]
[1751434447562,8.313496,2438.9,2438.8,46.97002494]
[1751434447771,8.313496,2438.9,2438.8,77.5798618]
[1751434450872,8.313496,2438.9,2438.8,72.54332494]
[1751434454570,8.313496,2438.9,2438.8,67.17565]
[1751434454773,8.313496,2438.9,2438.8,27.21148747]
[1751434455072,8.313496,2438.9,2438.8,28.03143747]
[1751434455372,8.313496,2438.9,2438.8,3.13343747]
[1751434455576,8.313496,2438.9,2438.8,29.68622494]
[1751434455770,8.313496,2438.9,2438.8,31.07892494]
[1751434456167,8.313496,2438.9,2438.8,36.78341347]
[1751434456369,8.313496,2438.9,2438.8,11.88641347]
[1751434456572,8.313496,2438.9,2438.8,36.78341347]
[1751434457475,8.313496,2438.9,2438.8,36.78241347]
[1751434457869,8.313496,2438.9,2438.8,10.94010614]
[1751434458073,8.313496,2438.9,2438.8,27.26026761]
[1751434458572,9.001996,2438.9,2438.8,27.26026761]
[1751434458873,9.001996,2438.9,2438.8,28.08021761]
[1751434459469,9.001996,2438.9,2438.8,2.36526761]
[1751434459670,9.001996,2438.9,2438.8,28.08021761]
[1751434460172,9.001996,2438.9,2438.8,3.18521761]
[1751434460371,9.001996,2438.9,2438.8,28.08021761]
[1751434461076,9.001996,2438.9,2438.8,3.18521761]
[1751434461276,9.001996,2438.9,2438.8,28.07921761]
[1751434462176,9.001996,2438.9,2438.8,3.18521761]
[1751434462876,9.001996,2438.9,2438.8,28.07821761]
[1751434464179,8.313496,2438.9,2438.8,35.14770614]
[1751434467075,8.313496,2438.9,2438.8,29.44321761]
[1751434467680,8.313496,2438.9,2438.8,35.15005401]
[1751434468778,2.04873,2440.2,2439.0,2.04972]
[1751434469089,1.3447,2440.0,2439.2,2.04954]
[1751434469375,15.98343761,2440.9,2439.9,2.36526761]
[1751434469580,0.6583,2440.5,2440.3,2.36526761]
[1751434469784,0.81927,2440.9,2440.3,27.25426761]
[1751434469984,1.90916764,2440.8,2440.6,2.36526761]
[1751434470281,0.6864,2440.8,2440.6,2.36526761]
[1751434470878,0.6864,2440.8,2440.6,3.18460761]
[1751434471074,0.6864,2440.8,2440.7,0.81931]
[1751434471983,8.999896,2440.8,2440.7,0.81931]
[1751434472181,8.999896,2440.8,2440.6,3.18459761]
[1751434472377,8.999896,2440.8,2440.7,0.81931]
[1751434474182,8.999896,2440.8,2440.6,3.18459761]
[1751434474478,8.999896,2440.8,2440.7,0.81931]
[1751434474888,8.999896,2440.8,2440.6,3.18459761]
[1751434475390,8.999896,2440.8,2440.6,2.36526761]
[1751434475588,8.999896,2440.8,2440.6,27.24426761]
[1751434476090,9.819196,2440.8,2440.6,27.24426761]
[1751434476281,9.819196,2440.8,2440.6,28.06361761]
[1751434477794,0.81931,2440.7,2440.6,2.36526761]
[1751434477984,0.81931,2440.7,2440.6,27.24126761]
[1751434479093,0.81931,2440.7,2440.6,2.36526761]
[1751434479288,0.81931,2440.7,2440.6,27.24126761]
[1751434480096,0.81931,2440.7,2440.6,2.36526761]
[1751434480290,9.132806,2440.7,2440.6,2.36526761]
[1751434481192,8.313496,2440.7,2440.6,3.18461761]
[1751434481787,9.132806,2440.7,2440.6,2.36526761]
[1751434482191,8.313496,2440.7,2440.6,3.18461761]
[1751434482587,9.132806,2440.7,2440.6,3.81016761]
[1751434482790,9.132806,2440.7,2440.5,25.5828]
[1751434482998,9.132806,2440.7,2440.6,2.36526761]
[1751434483196,8.313496,2440.7,2440.6,2.36526761]
[1751434483596,9.132826,2440.7,2440.5,27.23726761]
[1751434483795,9.132826,2440.7,2440.5,28.05664761]
[1751434483993,9.132816,2440.7,2440.5,28.05564761]
[1751434484197,8.313496,2440.7,2440.6,0.81935]
[1751434484390,9.132826,2440.7,2440.5,28.05562761]
[1751434484593,0.81935,2440.6,2440.5,27.23626761]
[1751434484890,0.81935,2440.6,2440.4,2.36526761]
[1751434485096,0.81935,2440.6,2440.5,24.87]
[1751434485296,0.81934,2440.7,2440.5,25.68938]
[1751434485510,2.8208,2441.1,2440.6,2.36526761]
[1751434485693,0.81931,2440.7,2440.6,2.36526761]
[1751434486592,0.81931,2440.7,2440.6,3.18461761]
[1751434487003,0.8193,2440.8,2440.6,3.18461761]
[1751434487203,0.8193,2440.8,2440.6,0.81935]
[1751434487502,9.132806,2440.7,2440.6,0.81935]
[1751434487803,8.313496,2440.7,2440.6,0.81935]
[1751434488003,9.132806,2440.7,2440.6,0.81935]
[1751434488302,9.132806,2440.7,2440.5,25.68836]
[1751434488497,9.132806,2440.7,2440.5,28.05262761]
[1751434488800,0.81935,2440.6,2440.5,3.18462761]
[1751434489103,9.132836,2440.7,2440.5,28.05262761]
[1751434489801,9.132836,2440.7,2440.6,0.81935]
[1751434491506,9.132836,2440.7,2440.5,28.05263761]
[1751434492005,9.132836,2440.7,2440.6,2.1177]
[1751434494804,9.132836,2440.7,2440.6,0.6703]
[1751434495704,8.313496,2440.7,2440.5,24.864]
[1751434495899,0.81935,2440.6,2440.5,24.864]
[1751434496298,0.81938,2440.5,2440.4,25.68338]
[1751434497212,0.81938,2440.5,2440.4,0.81938]
[1751434497412,0.81941,2440.4,2440.3,45.99218761]
[1751434497714,9.022396,2440.7,2440.3,74.09178132]
[1751434497906,0.81941,2440.4,2440.3,70.85518761]
[1751434498106,0.8194,2440.5,2440.4,0.81941]
[1751434498309,0.81937,2440.6,2440.5,0.81938]
[1751434498608,0.81937,2440.6,2440.5,3.08986761]
[1751434499613,0.81937,2440.6,2440.5,7.14588132]
[1751434500209,9.132866,2440.6,2440.5,7.14588132]
[1751434500908,9.132866,2440.6,2440.5,8.48528132]
[1751434501909,9.132866,2440.6,2440.5,5.24864761]
[1751434502308,9.132866,2440.6,2440.5,4.42926761]
[1751434502504,9.132866,2440.6,2440.5,0.7246]
[1751434505720,0.81938,2440.5,2440.4,27.22526761]
[1751434506123,0.81938,2440.5,2440.4,35.06727603]
[1751434506620,9.132856,2440.6,2440.5,0.81938]
[1751434506822,9.132856,2440.6,2440.5,2.18868]
[1751434507415,9.132856,2440.6,2440.5,1.3693]
[1751434508022,0.81938,2440.5,2440.4,32.93026603]
[1751434508220,0.81938,2440.5,2440.4,35.11897603]
[1751434508521,0.81938,2440.5,2440.4,34.29956603]
[1751434509018,0.81938,2440.5,2440.4,9.44056603]
[1751434509223,0.81938,2440.5,2440.4,5.70599842]
[1751434509424,0.81941,2440.4,2440.3,47.16409842]
[1751434509723,0.81941,2440.4,2440.3,72.02209842]
[1751434510024,0.81941,2440.4,2440.3,32.04154842]
[1751434510223,9.132906,2440.4,2440.3,31.22209842]
[1751434511423,9.132906,2440.4,2440.3,25.5161]
[1751434513527,9.132906,2440.4,2440.3,26.33555]
[1751434513827,8.313496,2440.4,2440.3,33.40024842]
[1751434516732,8.313496,2440.4,2440.3,27.69425]
[1751434521628,8.313496,2440.4,2440.3,68.49425]
[1751434523735,8.313496,2440.4,2440.3,43.63625]
[1751434523931,8.313496,2440.4,2440.3,80.03825]
[1751434525337,8.313496,2440.4,2440.3,43.63625]
[1751434525636,8.313496,2440.4,2440.3,80.03725]
[1751434529337,8.313496,2440.4,2440.3,43.63625]
[1751434529538,8.313496,2440.4,2440.3,80.03525]
[1751434531636,8.313496,2440.4,2440.3,80.03425]
[1751434531837,8.313496,2440.4,2440.3,43.63625]
[1751434532039,8.313496,2440.4,2440.3,46.00151761]
[1751434532239,8.313496,2440.4,2440.3,70.84851761]
[1751434532538,8.313496,2440.4,2440.3,42.27755]
[1751434532740,8.313496,2440.4,2440.3,67.12455]
[1751434532936,8.313496,2440.4,2440.3,42.27755]
[1751434533238,8.313496,2440.4,2440.3,41.4581]
[1751434533438,8.313496,2440.4,2440.3,42.27755]
[1751434533641,8.313496,2440.4,2440.3,67.12355]
[1751434535039,8.313496,2440.4,2440.3,41.4581]
[1751434535240,8.313496,2440.4,2440.3,40.8]
[1751434535541,9.132906,2440.4,2440.3,71.35106068]
[1751434535839,9.132906,2440.4,2440.3,30.55106068]
[1751434536028,9.132906,2440.4,2440.3,31.37051068]
[1751434536029,8.313496,2440.4,2440.3,31.37051068]
[1751434539847,8.313496,2440.4,2440.3,6.52451068]
[1751434540144,8.313496,2440.4,2440.3,31.36951068]
[1751434542548,8.313496,2440.4,2440.3,6.52451068]
[1751434542746,8.313496,2440.4,2440.3,31.36851068]
[1751434545447,9.132906,2440.4,2440.3,31.36851068]
[1751434546643,9.132906,2440.4,2440.3,30.54906068]
[1751434546947,8.313496,2440.4,2440.3,31.36851068]
[1751434547350,9.132906,2440.4,2440.3,30.54906068]
[1751434547851,9.132906,2440.4,2440.3,31.36651068]
[1751434548050,8.313496,2440.4,2440.3,31.36651068]
[1751434548648,9.132906,2440.4,2440.3,31.36651068]
[1751434550855,9.132906,2440.4,2440.3,30.54706068]
[1751434551056,9.132906,2440.4,2440.3,31.36651068]
[1751434551353,9.132906,2440.4,2440.3,30.54706068]
[1751434551553,9.132906,2440.4,2440.3,31.36651068]
[1751434552452,9.132906,2440.4,2440.3,5.70506068]
[1751434552756,0.81945,2440.3,2440.2,5.70506068]
[1751434553250,0.81948,2440.2,2440.1,31.36557068]
[1751434553456,1.49268,2440.2,2440.1,31.36557068]
[1751434553651,1.49268,2440.2,2440.1,5.70506068]
[1751434553953,0.81951,2440.1,2440.0,31.36461068]
[1751434555148,1.4927,2440.2,2440.1,0.81951]
[1751434555444,0.81947,2440.3,2440.2,0.81948]
[1751434555647,0.81947,2440.3,2440.2,6.44242944]
[1751434557453,9.132966,2440.3,2440.2,6.44242944]
[1751434562053,8.313496,2440.3,2440.2,6.44242944]
[1751434562357,8.313496,2440.3,2440.2,28.02374761]
[1751434562556,8.313496,2440.3,2440.2,30.09564761]
[1751434562756,8.313496,2440.3,2440.2,35.80070829]
[1751434564762,8.313496,2440.3,2440.2,34.98122829]
[1751434565162,8.313496,2440.3,2440.2,34.26962829]
[1751434565356,8.313496,2440.3,2440.2,34.97602829]
[1751434565664,8.313496,2440.3,2440.2,10.13702829]
[1751434565862,9.132946,2440.3,2440.2,34.97402829]
[1751434566066,8.313496,2440.3,2440.2,34.97402829]
[1751434566361,8.313496,2440.3,2440.2,35.79350829]
[1751434566964,8.313496,2440.3,2440.2,34.97402829]
[1751434567962,8.313496,2440.3,2440.2,34.97202829]
[1751434568662,9.132946,2440.3,2440.2,34.26562829]
[1751434568863,9.132946,2440.3,2440.2,30.54006068]
[1751434569265,0.81948,2440.2,2440.1,6.41526068]
[1751434569467,1.53698,2440.2,2440.1,31.25026068]
[1751434569766,1.53698,2440.2,2440.1,25.5452]
[1751434570264,9.850476,2440.2,2440.1,25.5452]
[1751434570967,0.81952,2440.1,2440.0,30.53906068]
[1751434571264,0.81952,2440.1,2440.0,24.834]
[1751434572466,0.81952,2440.1,2440.0,27.19926761]
[1751434572668,0.81952,2440.1,2440.0,28.53026761]
[1751434573471,0.81952,2440.1,2440.0,29.34981761]
[1751434573773,0.81952,2440.1,2440.0,28.53026761]
[1751434574972,0.81952,2440.1,2440.0,3.69626761]
[1751434575271,9.133016,2440.1,2440.0,3.69626761]
[1751434575470,9.133016,2440.1,2440.0,28.52926761]
[1751434575669,9.133016,2440.1,2440.0,3.69626761]
[1751434575864,9.133016,2440.1,2440.0,28.52926761]
[1751434580475,9.133016,2440.1,2440.0,1.331]
[1751434580679,0.81955,2440.0,2439.9,5.70506068]
[1751434580875,0.81958,2439.9,2439.8,6.36986068]
[1751434581074,0.81958,2439.9,2439.8,47.16986068]
[1751434581678,0.81958,2439.9,2439.8,6.36986068]
[1751434582071,0.81958,2439.9,2439.8,31.20086068]
[1751434582676,0.81958,2439.9,2439.8,6.36986068]
[1751434583375,0.81958,2439.9,2439.8,5.70506068]
[1751434585276,0.81962,2439.8,2439.6,7.05806068]
[1751434585479,0.81965,2439.7,2439.6,5.70506068]
[1751434590186,9.133146,2439.7,2439.6,5.70506068]
[1751434592186,0.81968,2439.6,2439.5,5.70506068]
[1751434594383,8.313496,2439.7,2439.5,8.07032829]
[1751434594584,8.313496,2439.7,2439.6,2.90468]
[1751434594791,8.313496,2439.7,2439.6,3.59348]
[1751434598192,4.41340761,2440.9,2439.7,2.0491]
[1751434598393,0.81941,2440.4,2440.3,2.36526761]
[1751434598689,0.8194,2440.5,2440.3,2.36526761]
[1751434598889,0.6816,2440.7,2440.3,2.36526761]
[1751434598890,0.81941,2440.4,2440.3,3.69906761]
[1751434599293,0.81941,2440.4,2440.3,1.3338]
[1751434599888,0.81941,2440.5,2440.3,1.3338]
[1751434600293,0.81941,2440.4,2440.3,1.3338]
[1751434601295,9.132906,2440.4,2440.3,1.3338]
[1751434602491,13.313496,2440.4,2439.9,4.07590551]
[1751434602697,0.81958,2439.9,2439.8,4.07590551]
[1751434602996,3.18484761,2439.9,2439.8,4.07590551]
[1751434603196,0.81962,2439.8,2439.7,4.07590551]
[1751434603396,0.81965,2439.7,2439.6,6.05670551]
[1751434603591,0.81965,2439.7,2439.6,4.07590551]
[1751434605098,0.81968,2439.6,2439.5,5.70626771]
[1751434608600,0.81972,2439.5,2439.4,0.6568]
[1751434608802,0.81972,2439.5,2439.4,1.9984]
[1751434610302,0.81972,2439.5,2439.4,10.14982631]
[1751434611305,9.133216,2439.5,2439.4,10.14982631]
[1751434611902,9.133216,2439.5,2439.4,5.18341761]
[1751434613205,9.133216,2439.5,2439.4,10.07460846]
[1751434614507,9.133216,2439.5,2439.4,4.36366761]
[1751434615106,9.133216,2439.5,2439.4,1.9984]
[1751434615714,0.81978,2439.3,2439.2,6.36674085]
[1751434615916,0.81978,2439.3,2439.2,7.72374085]
[1751434617716,0.81978,2439.3,2439.2,2.0128]
[1751434618017,0.81978,2439.3,2439.2,2.83262]
[1751434619620,0.81978,2439.3,2439.2,2.0128]
[1751434620312,9.133276,2439.3,2439.2,2.0128]
[1751434626122,9.113276,2439.3,2439.2,2.0128]
[1751434627726,9.113276,2439.3,2439.2,2.83262]
[1751434630027,9.133276,2439.3,2439.2,2.83262]
[1751434630728,9.133276,2439.3,2439.2,5.19788761]
[1751434630928,9.133276,2439.3,2439.2,4.37806761]
[1751434632430,9.133276,2439.3,2439.2,5.19788761]
[1751434634732,0.81982,2439.2,2439.1,41.4916]
[1751434634933,0.81982,2439.2,2439.1,66.3186]
[1751434635128,9.133316,2439.2,2439.1,66.3186]
[1751434635328,9.133316,2439.2,2439.1,0.6916]
[1751434637728,0.81985,2439.1,2439.0,5.71094085]
[1751434637933,3.91071761,2439.1,2439.0,5.71094085]
[1751434638636,0.81992,2438.9,2438.8,6.53087085]
[1751434639432,0.81992,2438.9,2438.8,0.81993]
[1751434640337,9.133416,2438.9,2438.8,0.81993]
[1751434640732,9.133416,2438.9,2438.8,2.14113]
[1751434641138,9.133416,2438.9,2438.8,7.85695508]
[1751434642438,9.133416,2438.9,2438.8,7.03702508]
[1751434647040,9.133416,2438.9,2438.8,5.71582508]
[1751434651247,9.133416,2438.9,2438.8,6.53577508]
[1751434651945,9.133416,2438.9,2438.8,2.20525]
[1751434652748,9.133416,2438.9,2438.8,1.3853]
[1751434660853,0.81995,2438.8,2438.7,5.71582508]
[1751434661059,1.51185,2438.8,2438.7,5.71582508]
[1751434665263,9.825346,2438.8,2438.7,5.71582508]
[1751434667668,0.81999,2438.7,2438.6,0.7014]
[1751434667865,0.81999,2438.7,2438.6,2.0654]
[1751434668066,0.81999,2438.7,2438.6,0.7014]
[1751434669271,0.82005,2438.5,2438.4,6.43082508]
[1751434669470,0.82005,2438.5,2438.4,7.77232508]
[1751434670171,9.133546,2438.5,2438.4,7.77232508]
[1751434673476,9.133546,2438.5,2438.4,2.0565]
[1751434675378,9.133546,2438.5,2438.4,2.87659]
[1751434676378,9.133546,2438.5,2438.4,2.0565]
[1751434682283,11.49881361,2438.5,2438.4,2.0565]
[1751434682680,11.49881361,2438.5,2438.4,1.3415]
[1751434682983,0.82009,2438.4,2438.3,6.41732508]
[1751434683184,1.50949,2438.4,2438.3,7.75432508]
[1751434683684,1.50949,2438.4,2438.3,8.57444508]
[1751434684480,1.50949,2438.4,2438.3,7.75432508]
[1751434685282,9.822986,2438.4,2438.3,7.87294508]
[1751434685485,9.822986,2438.4,2438.3,2.15712]
[1751434685988,9.822986,2438.4,2438.3,1.337]
[1751434689889,0.82012,2438.3,2438.2,0.6855]
[1751434690086,2.47699888,2438.3,2438.2,0.6855]
[1751434690391,10.79049488,2438.3,2438.2,0.6855]
[1751434697999,0.82015,2438.2,2438.1,6.44052508]
[1751434698200,8.313496,2438.3,2438.1,5.71582508]
[1751434698496,8.313496,2438.3,2438.2,9.55915396]
[1751434699800,8.313496,2438.3,2438.2,7.90227508]
[1751434700798,8.313496,2438.3,2438.2,2.18645]
[1751434701002,8.313496,2438.3,2438.2,7.18645]
[1751434701201,8.313496,2438.3,2438.2,12.4520749]
[1751434701904,8.313496,2438.3,2438.2,23.9900749]
[1751434704305,8.313496,2438.3,2438.2,18.9900749]
[1751434704503,8.313496,2438.3,2438.2,23.9900749]
[1751434705403,7.176696,2438.3,2438.2,23.9900749]
[1751434713114,6.764096,2438.3,2438.2,23.9900749]
[1751434715316,6.764096,2438.3,2438.2,24.7064749]
[1751434718716,6.764096,2438.3,2438.2,23.9900749]
[1751434718911,6.764096,2438.3,2438.2,24.6495749]
[1751434719818,6.764096,2438.3,2438.2,26.30573502]
[1751434720118,6.394696,2438.3,2438.2,26.30573502]
[1751434720313,5.998896,2438.3,2438.2,34.45716133]
[1751434720615,5.299196,2438.3,2438.2,34.45716133]
[1751434720811,5.009496,2438.3,2438.2,34.45716133]
[1751434721211,3.81956624,2438.3,2438.2,34.45716133]
[1751434721411,3.50706624,2438.3,2438.2,34.45716133]
[1751434721614,1.05632332,2439.3,2438.7,0.81999]
[1751434721820,1.48105,2439.2,2439.0,1.65616012]
[1751434722020,2.31736012,2439.2,2438.8,0.81992]
[1751434722320,2.47606012,2439.0,2438.8,47.33421486]
[1751434722620,2.47606012,2439.0,2438.8,41.61992]
[1751434722919,0.6612,2438.9,2438.8,41.61992]
[1751434724714,8.974696,2438.9,2438.8,41.61992]
[1751434730529,8.974696,2438.9,2438.8,47.33421486]
[1751434731828,8.974696,2438.9,2438.8,48.99037498]
[1751434732028,8.974696,2438.9,2438.8,50.30187498]
[1751434732228,8.974696,2438.9,2438.8,48.64571486]
[1751434733036,8.974696,2438.9,2438.8,50.30187498]
[1751434733327,8.974696,2438.9,2438.8,48.64571486]
[1751434733532,8.974696,2438.9,2438.8,42.93142]
[1751434738833,8.974696,2438.9,2438.8,1.3115]
[1751434739039,8.974696,2438.9,2438.5,10.20153631]
[1751434739040,0.82002,2438.6,2438.5,8.15142631]
[1751434739335,2.47618012,2438.6,2438.5,13.87221691]
[1751434739741,0.82009,2438.4,2438.1,11.33845703]
[1751434740036,0.82009,2438.4,2438.2,0.82015]
[1751434740238,8.313496,2438.3,2438.2,0.82015]
[1751434741540,8.313496,2438.3,2438.2,26.45535]
[1751434742134,8.313496,2438.3,2438.2,32.17616815]
[1751434743342,8.313496,2438.3,2438.2,26.45535]
[1751434744035,8.313496,2438.3,2438.2,27.91025]
[1751434744942,8.313496,2438.3,2438.2,30.64596452]
[1751434745442,8.313496,2438.3,2438.2,30.64996452]
[1751434746443,9.133616,2438.3,2438.2,30.64996452]
[1751434746637,9.133616,2438.3,2438.2,24.931]
[1751434746842,8.313496,2438.3,2438.2,25.75115]
[1751434747242,8.313496,2438.3,2438.2,24.931]
[1751434748043,9.133616,2438.3,2438.2,24.931]
[1751434748442,9.133616,2438.3,2438.1,8.90600524]
[1751434748744,0.6748,2438.2,2438.1,33.83200524]
[1751434748946,0.6748,2438.2,2438.1,31.46114452]
[1751434749442,1.49495,2438.2,2438.1,30.64096452]
[1751434750046,1.49495,2438.2,2438.1,31.46115452]
[1751434750353,9.808446,2438.2,2438.1,25.74219]
[1751434751048,8.988296,2438.2,2438.1,25.74219]
[1751434752838,9.808446,2438.2,2438.1,25.74219]
[1751434753146,8.988296,2438.2,2438.1,25.74219]
[1751434753351,9.808446,2438.2,2438.1,25.73619]
[1751434753547,8.988296,2438.2,2438.1,25.73619]
[1751434754048,9.808446,2438.2,2438.1,25.73619]
[1751434754244,8.988296,2438.2,2438.1,25.73619]
[1751434755349,8.988296,2438.2,2438.1,28.10305072]
[1751434755549,8.988296,2438.2,2438.1,30.19925072]
[1751434756952,8.988296,2438.2,2438.1,29.37906072]
[1751434757346,8.988296,2438.2,2438.1,4.46306072]
[1751434758048,8.988296,2438.2,2438.1,5.28325072]
[1751434759952,8.988296,2438.2,2438.1,4.55965072]
[1751434761152,8.988296,2438.2,2437.9,6.42706452]
[1751434761352,0.82022,2438.0,2437.9,5.71896452]
[1751434761555,0.82028,2437.9,2437.7,5.71896452]
[1751434761748,1.53418,2437.9,2437.7,46.51896452]
[1751434761950,1.53418,2437.9,2437.7,47.33928452]
[1751434763054,1.53418,2437.9,2437.8,0.82029]
[1751434763352,0.7139,2437.9,2437.8,0.82029]
[1751434765153,9.027396,2437.9,2437.8,0.82029]
[1751434766955,9.847656,2437.9,2437.8,0.82029]
[1751434767155,9.027396,2437.9,2437.8,0.82029]
[1751434767357,9.027396,2437.9,2437.7,47.33926452]
[1751434767657,9.027396,2437.9,2437.8,5.71896452]
[1751434767953,9.847656,2437.9,2437.8,5.71896452]
[1751434769550,9.847656,2437.9,2437.7,40.8]
[1751434769551,9.847656,2437.9,2437.7,41.62032]
[1751434769750,0.82029,2437.8,2437.7,42.96362]
[1751434770152,9.133786,2437.8,2437.7,42.96362]
[1751434770852,9.133786,2437.8,2437.7,42.1433]
[1751434771256,8.313496,2437.8,2437.7,42.96362]
[1751434771559,8.313496,2437.8,2437.7,42.1433]
[1751434771760,9.133786,2437.8,2437.7,42.1433]
[1751434776060,9.133786,2437.8,2437.7,47.86882044]
[1751434776458,9.133786,2437.8,2437.7,42.1433]
[1751434776764,9.133786,2437.8,2437.7,42.96362]
[1751434777162,9.133786,2437.8,2437.7,42.1433]
[1751434778566,9.133786,2437.8,2437.7,42.96362]
[1751434779166,9.133786,2437.8,2437.7,42.1433]
[1751434780870,9.133786,2437.8,2437.7,42.96362]
[1751434781373,9.133786,2437.8,2437.7,42.1433]
[1751434781671,9.133786,2437.8,2437.7,42.96362]
[1751434782470,9.133786,2437.8,2437.7,48.68914044]
[1751434783171,8.313496,2437.8,2437.7,48.68914044]
[1751434783372,9.133786,2437.8,2437.7,47.86882044]
[1751434784983,9.133786,2437.8,2437.7,48.68914044]
[1751434785178,8.313496,2437.8,2437.7,48.68914044]
[1751434785378,9.133786,2437.8,2437.7,47.86882044]
[1751434785572,9.133786,2437.8,2437.7,7.06882044]
[1751434785776,9.133786,2437.8,2437.7,5.72552044]
[1751434786778,9.133786,2437.8,2437.7,7.15902044]
[1751434787883,9.133786,2437.8,2437.7,5.72552044]
[1751434788076,0.82032,2437.7,2437.6,5.72552044]
[1751434788279,3.18718072,2437.7,2437.6,5.72552044]
[1751434788577,8.18718072,2437.7,2437.6,5.72552044]
[1751434789379,3.18718072,2437.7,2437.6,5.72552044]
[1751434790482,11.50067672,2437.7,2437.6,5.72552044]
[1751434792082,0.82046,2437.3,2437.2,8.83551491]
[1751434792386,0.82046,2437.3,2437.2,8.17931491]
[1751434792982,0.82049,2437.2,2437.1,0.6576]
[1751434793182,0.82053,2437.1,2437.0,49.79985491]
[1751434793588,1.54171,2437.2,2437.1,0.82053]
[1751434794277,0.82053,2437.1,2437.0,41.62055]
[1751434795081,0.82053,2437.1,2437.0,43.04795]
[1751434795282,9.134026,2437.1,2437.0,1.4274]
[1751434795487,8.313496,2437.1,2437.0,2.24796]
[1751434795783,8.313496,2437.1,2437.0,1.4274]
[1751434795983,8.313496,2437.1,2437.0,2.24796]
[1751434800091,8.313496,2437.1,2437.0,7.97435383]